bitfinex-derivatives/quotes_ETHF0:USTF0_20250327
["timestamp","ask_amount","ask_price","bid_price","bid_amount"]
[1743034881771,2.41505,2009.9,2009.8,1.69096213]
[1743034881966,2.41505,2009.9,2009.8,0.69596213]
[1743034882869,2.41505,2009.9,2009.8,1.69096213]
[1743034883170,2.41505,2009.9,2009.8,0.69596213]
[1743034883368,2.41505,2009.9,2009.8,1.69096213]
[1743034883568,2.41505,2009.9,2009.8,0.69596213]
[1743034884274,2.41505,2009.9,2009.8,1.69096213]
[1743034884568,2.41505,2009.9,2009.8,0.69596213]
[1743034885169,2.41505,2009.9,2009.8,0.00746213]
[1743034885874,3.11845,2009.9,2009.8,0.00746213]
[1743034888874,7.8313,2009.9,2009.3,2.60898142]
[1743034889068,0.99525,2009.3,2009.2,0.99527]
[1743034889269,0.9953,2009.2,2009.1,2.35571]
[1743034889484,0.9953,2009.2,2009.1,43.15571]
[1743034889774,0.9953,2009.2,2009.1,40.8]
[1743034890071,0.9953,2009.2,2009.1,41.79535]
[1743034892281,0.9953,2009.2,2009.1,43.11885]
[1743034896682,0.9953,2009.2,2009.1,40.8]
[1743034897380,0.9953,2009.2,2009.1,41.79535]
[1743034897682,0.9953,2009.2,2009.1,43.10635]
[1743034898183,0.9953,2009.2,2009.1,42.111]
[1743034898384,0.9953,2009.2,2009.1,43.10635]
[1743034899280,0.9953,2009.2,2009.1,42.111]
[1743034899474,0.9953,2009.2,2009.1,40.8]
[1743034900085,0.9953,2009.2,2009.1,41.79535]
[1743034900385,0.9953,2009.2,2009.1,43.13325]
[1743034900886,0.9953,2009.2,2009.1,42.1379]
[1743034901478,0.9953,2009.2,2009.1,40.8]
[1743034903188,0.9953,2009.2,2009.1,42.2079]
[1743034903775,0.9953,2009.2,2009.1,40.8]
[1743034905081,0.9953,2009.2,2009.1,43.20325]
[1743034906483,1.329,2009.3,2009.2,0.9953]
[1743034906690,1.329,2009.3,2009.2,5.5799]
[1743034906882,0.99523,2009.4,2009.3,0.99522]
[1743034907082,2.42483,2009.4,2009.3,43.17202]
[1743034908881,1.4296,2009.4,2009.3,43.17202]
[1743034909185,2.4248,2009.4,2009.3,43.17202]
[1743034912092,2.4248,2009.4,2009.3,41.79522]
[1743034912398,2.4248,2009.4,2009.3,43.12472]
[1743034913187,2.4248,2009.4,2009.3,43.12475]
[1743034913586,0.99535,2009.1,2009.0,4.30644142]
[1743034913786,0.99535,2009.1,2009.0,5.63594142]
[1743034914393,1.3126,2009.2,2009.1,0.99535]
[1743034914584,3.87389,2009.5,2009.3,0.99525]
[1743034914585,0.99524,2009.4,2009.3,0.99525]
[1743034914891,2.38774,2009.4,2009.3,0.99525]
[1743034915091,0.99525,2009.3,2009.2,2.31225]
[1743034915294,2.38775,2009.3,2009.2,2.31225]
[1743034916192,1.3925,2009.3,2009.2,2.31225]
[1743034916389,2.38775,2009.3,2009.2,2.31225]
[1743034920394,0.99535,2009.1,2009.0,3.31108142]
[1743034920598,0.99535,2009.1,2009.0,2.60898142]
[1743034921096,3.09135,2009.1,2009.0,2.60898142]
[1743034922093,6.29915,2009.1,2009.0,2.60898142]
[1743034922293,7.39536728,2009.1,2009.0,2.60898142]
[1743034923093,8.40743848,2009.1,2009.0,2.60898142]
[1743034923294,7.39536728,2009.1,2009.0,2.60898142]
[1743034923693,7.39536728,2009.1,2008.9,0.00746213]
[1743034923694,0.9954,2009.0,2008.9,0.00746213]
[1743034923895,2.3641,2009.0,2008.9,0.00746213]
[1743034924090,3.37601626,2009.0,2008.9,0.00746213]
[1743034924291,3.46031728,2009.0,2008.9,0.00746213]
[1743034925097,0.99559,2008.6,2008.5,3.30058142]
[1743034925394,4.97764,2008.8,2008.3,5.2149]
[1743034925395,0.99559,2008.7,2008.3,5.2149]
[1743034925594,1.3687,2008.6,2008.5,0.99564]
[1743034925795,1.3687,2008.6,2008.5,2.34544]
[1743034925996,2.36429,2008.6,2008.5,2.34544]
[1743034926203,1.3687,2008.6,2008.5,2.34544]
[1743034927097,0.99559,2008.7,2008.5,1.3498]
[1743034927291,5.69656,2008.8,2008.4,1.68724]
[1743034927600,0.99564,2008.5,2008.4,1.68724]
[1743034928103,0.6918,2008.6,2008.5,0.99564]
[1743034928104,0.99564,2008.6,2008.5,0.99564]
[1743034928306,2.35084,2008.6,2008.5,0.99564]
[1743034928502,2.35084,2008.6,2008.5,2.40854]
[1743034929501,0.99564,2008.5,2008.4,1.68727]
[1743034929707,2.30604,2008.5,2008.4,3.08597]
[1743034930199,1.3104,2008.5,2008.4,3.08597]
[1743034930403,2.30604,2008.5,2008.4,3.08597]
[1743034935019,1.3104,2008.5,2008.4,3.08597]
[1743034935223,2.30604,2008.5,2008.4,3.08597]
[1743034944926,3.00844,2008.5,2008.4,3.08597]
[1743034945330,0.99569,2008.4,2008.3,0.00746213]
[1743034945530,2.33879,2008.4,2008.3,0.00746213]
[1743034945918,2.33879,2008.4,2008.3,1.00320213]
[1743034946230,2.33879,2008.4,2008.3,0.00746213]
[1743034950239,3.8431,2008.4,2007.7,4.2038]
[1743034950537,3.8431,2008.4,2007.6,2.60898142]
[1743034950538,0.99598,2007.9,2007.8,0.99598]
[1743034950732,0.99599,2007.8,2007.7,2.4051]
[1743034950925,1.386,2007.8,2007.7,43.2051]
[1743034952040,1.386,2007.8,2007.7,46.4129]
[1743034954336,2.38199,2007.8,2007.7,46.4129]
[1743034954531,1.386,2007.8,2007.7,46.4129]
[1743034954731,2.38199,2007.8,2007.7,46.4129]
[1743034959243,2.38199,2007.8,2007.7,43.2051]
[1743034962142,1.386,2007.8,2007.7,43.2051]
[1743034962348,0.00746213,2008.0,2007.9,0.99594]
[1743034963045,0.00746213,2008.0,2007.9,43.79444]
[1743034963237,1.3123,2008.3,2008.2,0.99579]
[1743034963931,1.3123,2008.3,2008.2,2.31229]
[1743034964342,2.30804,2008.3,2008.2,2.31229]
[1743034964544,1.3123,2008.3,2008.2,2.31229]
[1743034965546,1.00314213,2008.5,2008.4,0.99569]
[1743034966139,0.99569,2008.4,2008.3,2.97201]
[1743034966542,2.48924,2008.4,2008.1,3.2078]
[1743034966741,1.4211,2008.3,2007.9,44.10218142]
[1743034966941,0.99584,2008.2,2008.1,0.99582]
[1743034967348,2.32044,2008.2,2008.1,0.99582]
[1743034967848,0.99584,2008.1,2008.0,0.99587]
[1743034968048,2.32044,2008.1,2008.0,0.99587]
[1743034968548,0.99589,2008.0,2007.9,1.6891]
[1743034968747,2.32049,2008.0,2007.9,1.6891]
[1743034972343,0.99594,2007.9,2007.8,45.00376]
[1743034972551,2.43624,2007.9,2007.8,45.00376]
[1743034974244,2.43624,2007.9,2007.8,4.20376]
[1743034974546,2.43624,2007.9,2007.8,0.99596]
[1743034977947,2.43624,2007.9,2007.8,2.43066]
[1743034979046,1.4403,2007.9,2007.8,2.43066]
[1743034979247,2.43624,2007.9,2007.8,2.43066]
[1743034979650,1.4403,2007.9,2007.8,2.43066]
[1743034980852,2.43624,2007.9,2007.8,2.43066]
[1743034985757,3.09824,2007.9,2007.8,0.99596]
[1743034985949,3.09824,2007.9,2007.8,2.38096]
[1743034987459,3.09824,2007.9,2007.8,0.99596]
[1743034988761,2.1023,2007.9,2007.8,0.99596]
[1743034989054,3.09824,2007.9,2007.8,2.34626]
[1743034991059,3.09824,2007.9,2007.8,0.99596]
[1743034991853,0.99599,2007.8,2007.7,6.22672]
[1743034992052,2.30609,2007.8,2007.7,4.20382]
[1743034992949,2.30609,2007.8,2007.7,5.56512]
[1743034997865,1.3101,2007.8,2007.7,5.56512]
[1743034998064,2.30609,2007.8,2007.7,5.56512]
[1743034998771,2.30609,2007.8,2007.7,3.2078]
[1743034999166,2.30609,2007.8,2007.7,4.5063]
[1743035000480,2.30609,2007.8,2007.7,5.50234]
[1743035003079,1.3101,2007.8,2007.7,5.50234]
[1743035003272,2.30609,2007.8,2007.7,5.50234]
[1743035003969,2.30609,2007.8,2007.7,2.29454]
[1743035007981,2.30609,2007.8,2007.7,0.99604]
[1743035008287,2.30609,2007.8,2007.7,2.42344]
[1743035021889,1.3101,2007.8,2007.7,2.42344]
[1743035022093,1.09744797,2007.9,2007.7,1.4274]
[1743035022287,1.05093732,2008.0,2007.9,0.99594]
[1743035022486,1.05093732,2008.0,2007.9,3.08574]
[1743035022896,0.99579,2008.2,2008.1,0.99584]
[1743035023286,0.99579,2008.2,2008.1,1.70504]
[1743035023982,0.99578,2008.3,2008.2,0.99574]
[1743035024194,0.99578,2008.3,2008.2,2.37054]
[1743035024797,4.20353,2008.4,2008.3,0.99574]
[1743035025096,4.20353,2008.4,2008.3,3.03534]
[1743035025595,5.55033,2008.4,2008.3,3.03534]
[1743035026199,5.55033,2008.4,2008.3,2.0396]
[1743035026394,7.0546,2008.4,2007.6,2.60898142]
[1743035026697,0.996,2007.8,2007.6,5.33988142]
[1743035026887,0.996,2007.8,2007.7,2.37082]
[1743035027089,1.6842,2007.8,2007.7,2.37082]
[1743035027301,1.6842,2007.8,2007.7,1.3748]
[1743035028195,1.6842,2007.8,2007.7,2.37084]
[1743035029400,1.6842,2007.8,2007.7,1.3748]
[1743035031100,1.6842,2007.8,2007.6,2.60898142]
[1743035031101,0.99604,2007.7,2007.6,2.60898142]
[1743035036102,0.99609,2007.6,2007.5,43.19649213]
[1743035036600,0.99609,2007.6,2007.5,42.20036213]
[1743035038602,0.99609,2007.6,2007.5,43.19650213]
[1743035038802,0.99609,2007.6,2007.5,42.20036213]
[1743035042307,0.99609,2007.6,2007.5,43.19650213]
[1743035043301,0.99609,2007.6,2007.5,42.20036213]
[1743035043707,0.99609,2007.6,2007.5,43.19650213]
[1743035043908,3.2078,2007.8,2007.5,45.41236213]
[1743035044208,4.20379,2007.8,2007.7,0.99604]
[1743035044415,0.99604,2007.7,2007.6,3.10995]
[1743035044711,0.99604,2007.7,2007.6,2.1139]
[1743035044895,3.05614,2007.7,2007.6,3.10999]
[1743035045711,2.37724,2007.7,2007.6,3.10999]
[1743035050505,1.3812,2007.7,2007.6,3.10999]
[1743035050807,3.2078,2007.8,2007.7,0.99604]
[1743035051003,4.20379,2007.8,2007.7,2.39634]
[1743035052417,0.99599,2007.8,2007.7,2.39634]
[1743035052912,2.29339,2007.8,2007.7,2.39634]
[1743035060917,5.29841941,2007.9,2007.8,0.99599]
[1743035061216,5.29841941,2007.9,2007.8,2.36969]
[1743035061217,3.2078,2007.9,2007.8,2.36969]
[1743035061714,2.35394,2007.9,2007.8,2.36969]
[1743035062817,3.03874,2007.9,2007.8,2.36969]
[1743035065615,2.35394,2007.9,2007.8,2.36969]
[1743035067316,1.358,2007.9,2007.8,2.36969]
[1743035067824,2.35394,2007.9,2007.8,2.36969]
[1743035070426,0.9959,2008.0,2007.9,0.99594]
[1743035070621,2.3099,2008.0,2007.9,1.69344]
[1743035071124,1.314,2008.0,2007.9,1.69344]
[1743035071325,2.30989,2008.0,2007.9,1.69344]
[1743035072628,2.30989,2008.0,2007.9,0.6975]
[1743035072834,0.99594,2007.9,2007.8,1.3737]
[1743035073036,0.99594,2007.9,2007.7,4.26239142]
[1743035073037,0.99599,2007.8,2007.7,3.60501142]
[1743035073235,0.99599,2007.8,2007.7,4.97531142]
[1743035073236,2.32139,2007.8,2007.7,4.97531142]
[1743035073425,3.70419,2007.8,2007.7,4.97531142]
[1743035074527,3.21526213,2008.5,2007.7,9.69028142]
[1743035074727,3.0285,2008.4,2008.3,0.99569]
[1743035075630,0.99577,2008.3,2008.2,0.99576]
[1743035075832,2.37857,2008.3,2008.2,0.99576]
[1743035076531,4.30994166,2008.5,2008.4,0.99569]
[1743035076736,6.68128166,2008.5,2008.4,0.99569]
[1743035077235,5.58660213,2008.5,2008.4,1.67859]
[1743035080338,4.59096213,2008.5,2008.4,1.67859]
[1743035080539,5.58660213,2008.5,2008.4,1.67859]
[1743035081038,4.59096213,2008.5,2008.4,1.67859]
[1743035081539,5.58660213,2008.5,2008.4,1.67859]
[1743035084045,4.59096213,2008.5,2008.4,1.67859]
[1743035084542,5.58660213,2008.5,2008.4,1.67859]
[1743035086054,5.58660213,2008.5,2008.4,0.99569]
[1743035089154,0.99574,2008.4,2008.3,0.9957]
[1743035089350,2.34624,2008.4,2008.3,0.9957]
[1743035091551,2.34624,2008.4,2008.3,2.3519]
[1743035092555,2.34624,2008.4,2008.3,0.9957]
[1743035095757,0.99579,2008.3,2008.2,0.99575]
[1743035095965,3.73049,2008.3,2008.2,0.99575]
[1743035096967,2.7347,2008.3,2008.2,0.99575]
[1743035097151,2.7347,2008.3,2008.2,2.37755]
[1743035097558,3.73044,2008.3,2008.2,2.37755]
[1743035103164,0.99579,2008.2,2008.1,5.81678142]
[1743035103371,2.38539,2008.2,2008.1,5.81678142]
[1743035103568,2.38539,2008.2,2008.1,3.2078]
[1743035104672,2.38539,2008.2,2008.1,4.20364]
[1743035105168,1.3896,2008.2,2008.1,4.20364]
[1743035105763,1.3896,2008.2,2008.1,5.56904]
[1743035107478,2.38539,2008.2,2008.1,5.56904]
[1743035107663,1.3896,2008.2,2008.1,5.56904]
[1743035109070,2.42682,2008.4,2008.3,0.99574]
[1743035109675,2.42682,2008.4,2008.3,2.31804]
[1743035112468,1.4311,2008.4,2008.3,2.31804]
[1743035113464,3.21526213,2008.5,2008.4,0.99569]
[1743035113664,0.00746213,2008.5,2008.4,5.50439]
[1743035115068,0.00746213,2008.5,2008.4,8.11337142]
[1743035115880,0.00746213,2008.5,2008.4,48.91337142]
[1743035121089,0.00746213,2008.5,2008.4,51.51337142]
[1743035121778,0.00746213,2008.5,2008.4,51.41337142]
[1743035124784,0.701,2009.0,2008.9,0.99545]
[1743035124986,1.3284,2009.0,2008.9,4.20325]
[1743035125580,1.3284,2009.0,2008.9,5.62545]
[1743035125785,2.3238,2009.0,2008.9,5.62545]
[1743035125986,1.3284,2009.0,2008.9,5.62545]
[1743035127389,2.3238,2009.0,2008.9,5.62545]
[1743035127589,1.3284,2009.0,2008.9,5.62545]
[1743035127793,2.3238,2009.0,2008.9,5.62545]
[1743035128084,1.3284,2009.0,2008.9,5.62545]
[1743035130089,1.3284,2009.0,2008.9,8.23443142]
[1743035131197,1.3284,2009.0,2008.9,49.03443142]
[1743035143993,2.3238,2009.0,2008.9,47.61223142]
[1743035144197,2.3238,2009.0,2008.9,6.81223142]
[1743035144405,1.3284,2009.0,2008.9,6.81223142]
[1743035144604,1.3284,2009.0,2008.9,49.04623142]
[1743035144904,0.00746213,2009.2,2009.1,0.99535]
[1743035145503,0.00746213,2009.2,2009.1,43.22935]
[1743035145697,0.00746213,2009.2,2009.1,44.55665]
[1743035150510,0.00746213,2009.2,2009.1,47.16563142]
[1743035159513,2.13e-06,2009.2,2009.1,47.61563142]
[1743035159701,5.69496,2010.1,2009.1,46.62028142]
[1743035160007,0.99496,2010.0,2009.9,0.9949]
[1743035160207,4.20266,2010.1,2010.0,0.9949]
[1743035161113,5.63246,2010.1,2010.0,0.9949]
[1743035162104,4.6376,2010.1,2010.0,2.355]
[1743035162410,1.4298,2010.1,2010.0,2.355]
[1743035164415,2.42465,2010.1,2010.0,0.9949]
[1743035165215,0.9949,2010.0,2009.9,41.7949]
[1743035165419,2.4066,2010.0,2009.9,41.7949]
[1743035166214,2.4066,2010.0,2009.9,0.9949]
[1743035167207,0.99495,2009.9,2009.8,1.00244213]
[1743035167403,3.69745,2009.9,2009.8,1.00244213]
[1743035167606,2.48761,2009.8,2009.5,4.20291]
[1743035167817,0.9951,2009.6,2009.5,4.20291]
[1743035168016,0.9951,2009.6,2009.5,0.99511]
[1743035168411,1.6868,2009.6,2009.5,0.99511]
[1743035168918,0.9952,2009.5,2009.4,0.99516]
[1743035169114,2.3437,2009.5,2009.4,0.99516]
[1743035169616,1.3485,2009.5,2009.3,43.41644355]
[1743035169819,2.3437,2009.4,2009.3,44.41166355]
[1743035172215,1.3485,2009.4,2009.3,44.41166355]
[1743035172416,1.3485,2009.4,2009.3,45.85116355]
[1743035172714,2.3437,2009.4,2009.3,44.41166355]
[1743035177416,2.3437,2009.4,2009.3,45.72786355]
[1743035178218,2.3437,2009.4,2009.3,4.92786355]
[1743035178626,2.3437,2009.4,2009.3,44.41166355]
[1743035178923,2.3437,2009.4,2009.3,0.00746213]
[1743035179127,0.9953,2009.2,2009.1,0.99533]
[1743035179527,0.9953,2009.2,2009.1,40.8]
[1743035179725,2.3062,2009.2,2009.1,41.79535]
[1743035180330,2.3062,2009.2,2009.1,43.12255]
[1743035180726,2.34357,2009.3,2009.2,0.9953]
[1743035181032,3.00637,2009.3,2009.2,2.3225]
[1743035192336,3.2078,2009.9,2009.8,0.99495]
[1743035192639,0.99505,2009.8,2009.7,0.99501]
[1743035192834,0.99505,2009.8,2009.7,1.70031]
[1743035193038,0.9951,2009.7,2009.6,0.99506]
[1743035193237,1.7058,2009.7,2009.6,0.99506]
[1743035193430,0.9951,2009.6,2009.5,1.68781]
[1743035193628,2.4206,2009.6,2009.5,1.68781]
[1743035193833,2.4206,2009.6,2009.5,0.99511]
[1743035194035,3.0809,2009.6,2009.5,0.99511]
[1743035194639,0.99515,2009.5,2009.4,2.97456]
[1743035194838,2.39475,2009.5,2009.4,2.97456]
[1743035195542,2.39475,2009.5,2009.4,2.31986]
[1743035196644,2.39475,2009.5,2009.4,1.3247]
[1743035196944,2.39475,2009.5,2009.4,2.3199]
[1743035199937,1.0938415,2009.6,2009.5,0.99515]
[1743035200137,1.0938415,2009.6,2009.5,3.05305]
[1743035200344,2.4269,2009.8,2009.7,0.99505]
[1743035201449,1.4319,2009.8,2009.7,0.99505]
[1743035201642,2.6822731,2010.1,2010.0,0.9949]
[1743035201841,1.67046,2010.1,2010.0,0.9949]
[1743035202042,2.6822731,2010.1,2010.0,0.9949]
[1743035202243,3.77607572,2010.1,2010.0,0.9949]
[1743035202447,2.76426262,2010.1,2010.0,0.9949]
[1743035202648,3.47116262,2010.1,2010.0,0.9949]
[1743035202850,4.80416262,2010.1,2010.0,0.9949]
[1743035204238,3.80930262,2010.1,2010.0,0.9949]
[1743035204548,3.71035,2010.1,2010.0,0.9949]
[1743035206449,0.9949,2010.0,2009.9,2.40022]
[1743035206756,2.3991,2010.0,2009.9,2.40022]
[1743035206950,2.3991,2010.0,2009.9,0.99492]
[1743035207857,0.99495,2009.9,2009.8,2.42436]
[1743035208058,2.41235,2009.9,2009.8,0.99496]
[1743035208852,2.41235,2009.9,2009.7,5.03339142]
[1743035208853,0.995,2009.8,2009.7,5.03339142]
[1743035209161,3.767,2009.8,2009.7,5.03339142]
[1743035211961,3.767,2009.8,2009.7,2.42441]
[1743035216155,2.772,2009.8,2009.7,2.42441]
[1743035216459,1.00225213,2010.3,2009.7,4.6372]
[1743035216655,1.00225213,2010.3,2010.2,0.9948]
[1743035216656,0.00746213,2010.3,2010.2,0.9948]
[1743035216856,1.00221213,2010.3,2010.2,0.9948]
[1743035217655,0.00746213,2010.3,2010.2,0.9948]
[1743035217857,1.35946213,2010.3,2010.2,2.4268]
[1743035219970,0.00746213,2010.3,2010.2,2.4268]
[1743035220371,1.09119218,2010.6,2010.5,0.99465]
[1743035220666,1.4001,2010.8,2010.7,0.99455]
[1743035220870,2.3946,2010.8,2010.7,0.99455]
[1743035221168,1.4001,2010.8,2010.7,0.99455]
[1743035221667,1.4001,2010.8,2010.7,2.31945]
[1743035222260,0.00746213,2011.0,2010.9,0.99446]
[1743035222465,1.33646213,2011.0,2010.9,0.99446]
[1743035223559,2.33087213,2011.0,2010.9,0.99446]
[1743035224063,1.33646213,2011.0,2010.9,0.99446]
[1743035224565,2.33087213,2011.0,2010.9,0.99446]
[1743035224768,1.33646213,2011.0,2010.9,0.99446]
[1743035224957,2.33087213,2011.0,2010.9,0.99446]
[1743035225566,1.33646213,2011.0,2010.9,0.99446]
[1743035225768,0.00746213,2011.0,2010.9,0.99446]
[1743035225959,0.00746213,2011.0,2010.9,4.99334142]
[1743035227166,4.202,2011.5,2011.4,0.99421]
[1743035227561,0.99422,2011.4,2011.3,0.99422]
[1743035228467,0.99423,2011.4,2011.3,0.99423]
[1743035228769,0.99423,2011.4,2011.2,1.3899]
[1743035228770,3.2078,2011.5,2011.4,0.99421]
[1743035229061,0.00746213,2011.6,2011.5,0.99416]
[1743035229854,0.00746213,2011.6,2011.5,2.38476]
[1743035230363,0.00746213,2011.6,2011.5,3.04416]
[1743035237473,0.00746213,2011.6,2011.5,5.54416]
[1743035237774,2.13e-06,2011.6,2011.5,8.15314142]
[1743035238074,2.13e-06,2011.6,2011.5,48.95314142]
[1743035238978,2.13e-06,2011.6,2011.5,46.45314142]
[1743035239680,2.13e-06,2011.6,2011.5,49.65414142]
[1743035241472,2.13e-06,2011.6,2011.5,52.15414142]
[1743035244175,2.13e-06,2011.6,2011.5,53.62414142]
[1743035244375,2.13e-06,2011.6,2011.5,52.15414142]
[1743035244784,2.13e-06,2011.6,2011.5,53.38414142]
[1743035246078,0.7094,2012.2,2012.1,0.99386]
[1743035246381,1.70321,2012.2,2012.1,0.99386]
[1743035246783,0.7094,2012.2,2012.1,0.99386]
[1743035247172,2.0643,2012.2,2012.1,2.42646]
[1743035248081,1.3549,2012.2,2012.1,2.42646]
[1743035248381,0.71606213,2012.4,2012.3,0.99376]
[1743035248382,1.41626213,2012.4,2012.3,0.99376]
[1743035248584,2.40997213,2012.4,2012.3,0.99376]
[1743035248886,2.40997213,2012.4,2012.3,41.79376]
[1743035249684,2.77366213,2012.4,2012.3,41.79376]
[1743035250095,3.76737213,2012.4,2012.3,41.79376]
[1743035250281,2.77366213,2012.4,2012.3,41.79376]
[1743035252178,3.76737213,2012.4,2012.3,41.79376]
[1743035252375,2.77366213,2012.4,2012.3,41.79376]
[1743035252580,2.77366213,2012.4,2012.3,0.99376]
[1743035254589,3.76737213,2012.4,2012.3,0.99376]
[1743035254787,2.77366213,2012.4,2012.3,0.99376]
[1743035254991,3.76737213,2012.4,2012.3,0.99376]
[1743035255991,2.77366213,2012.4,2012.3,0.99376]
[1743035256193,3.76737213,2012.4,2012.3,0.99376]
[1743035259288,2.77366213,2012.4,2012.3,0.99376]
[1743035259894,2.06506213,2012.4,2012.3,0.99376]
[1743035260194,2.06506213,2012.4,2012.3,1.68736]
[1743035261588,2.06506213,2012.4,2012.3,4.89516]
[1743035261793,2.06506213,2012.4,2012.3,8.09516]
[1743035263197,1.36486213,2012.4,2012.3,8.09516]
[1743035264096,1.36486213,2012.4,2012.3,48.89516]
[1743035270691,0.00746213,2012.4,2012.3,48.89516]
[1743035271400,2.13e-06,2012.4,2012.3,48.89516]
[1743035271594,0.6477,2012.7,2012.4,3.47795]
[1743035271798,0.693,2012.9,2012.8,0.99352]
[1743035272103,1.00775379,2013.3,2013.2,0.99332]
[1743035272104,1.09003855,2013.3,2013.2,0.99332]
[1743035272694,4.20102,2013.4,2013.3,0.99327]
[1743035272893,2.08323855,2013.5,2013.4,0.99322]
[1743035273101,0.99332,2013.3,2013.2,0.99326]
[1743035273496,3.2078,2013.4,2013.3,0.99327]
[1743035273497,4.89406,2013.4,2013.3,0.99327]
[1743035274299,0.99332,2013.3,2013.2,0.99328]
[1743035274804,2.34862,2013.3,2013.2,0.99328]
[1743035275197,3.04702,2013.3,2013.2,0.99328]
[1743035276202,3.04697,2013.3,2013.2,0.99328]
[1743035276709,2.0537,2013.3,2013.2,0.99328]
[1743035277099,3.04697,2013.3,2013.2,0.99328]
[1743035277299,2.0537,2013.3,2013.2,2.40178]
[1743035280411,1.3553,2013.3,2013.2,2.40178]
[1743035281102,0.6602,2013.5,2013.4,0.99322]
[1743035281305,3.2078,2013.6,2013.1,1.38186213]
[1743035281306,4.20092,2013.6,2013.5,0.99317]
[1743035282407,5.59412,2013.6,2013.5,0.99317]
[1743035284315,0.99317,2013.5,2013.4,0.99318]
[1743035284517,2.41037,2013.5,2013.4,0.99318]
[1743035285413,1.4172,2013.5,2013.4,0.99318]
[1743035285611,1.4172,2013.5,2013.4,2.32228]
[1743035286320,2.41037,2013.5,2013.4,2.32228]
[1743035291421,1.4172,2013.5,2013.4,2.32228]
[1743035292118,2.41037,2013.5,2013.4,2.32228]
[1743035292618,1.4172,2013.5,2013.4,2.32228]
[1743035293417,2.41037,2013.5,2013.4,2.32228]
[1743035293809,1.4172,2013.5,2013.4,2.32228]
[1743035294216,1.4172,2013.5,2013.4,2.99728]
[1743035294623,2.41037,2013.5,2013.4,2.99728]
[1743035295016,1.4172,2013.5,2013.4,2.99728]
[1743035296926,2.41037,2013.5,2013.4,2.99728]
[1743035297422,1.4172,2013.5,2013.4,2.99728]
[1743035298826,2.41037,2013.5,2013.4,2.99728]
[1743035299230,1.4172,2013.5,2013.4,2.99728]
[1743035299425,2.41037,2013.5,2013.4,2.99728]
[1743035299928,2.41037,2013.5,2013.4,2.32228]
[1743035300229,2.41041,2013.5,2013.4,0.99322]
[1743035300427,0.99322,2013.4,2013.3,2.41762]
[1743035300729,2.94742,2013.4,2013.3,2.41762]
[1743035301225,1.2984,2013.4,2013.3,2.41762]
[1743035305015,2.8185704,2013.7,2013.3,1.4244]
[1743035305222,1.3942,2013.6,2013.5,0.99317]
[1743035305419,1.3942,2013.6,2013.5,2.35987]
[1743035307328,2.0502,2013.7,2013.6,0.99312]
[1743035307524,2.0502,2013.7,2013.6,2.37652]
[1743035309722,1.09077433,2014.0,2013.9,0.99297]
[1743035309928,2.42237433,2014.0,2013.9,0.99297]
[1743035310120,1.3316,2014.0,2013.9,0.99297]
[1743035310526,1.3316,2014.0,2013.9,1.69467]
[1743035312923,0.6504,2014.1,2014.0,0.99292]
[1743035313126,2.0322,2014.1,2014.0,3.07852]
[1743035314232,3.2078,2014.5,2014.4,0.99273]
[1743035314730,4.5436,2014.5,2014.4,0.99273]
[1743035315331,4.5436,2014.5,2014.4,2.35833]
[1743035316228,1.3358,2014.5,2014.4,2.35833]
[1743035316824,3.2078,2014.8,2014.4,1.3656]
[1743035317024,3.2078,2014.8,2014.7,0.99258]
[1743035317632,3.2078,2014.8,2014.5,1.3878]
[1743035317831,3.2078,2014.8,2014.7,0.99258]
[1743035318227,4.20033,2014.8,2014.6,0.9926]
[1743035318426,4.20033,2014.8,2014.6,0.99259]
[1743035318628,4.20033,2014.8,2014.7,0.99258]
[1743035318934,3.2078,2014.8,2014.7,0.99258]
[1743035319139,4.6162,2014.8,2014.7,0.99258]
[1743035319432,5.60873,2014.8,2014.7,0.99258]
[1743035319836,4.6162,2014.8,2014.7,0.99258]
[1743035320428,5.60873,2014.8,2014.7,0.99258]
[1743035321232,4.6162,2014.8,2014.7,0.99258]
[1743035323331,1.4084,2014.8,2014.7,0.99258]
[1743035323532,1.4084,2014.8,2014.7,2.34358]
[1743035324530,1.4084,2014.8,2014.7,3.66328]
[1743035325734,1.4084,2014.8,2014.7,0.99258]
[1743035326039,2.1075,2014.8,2014.7,0.99258]
[1743035327744,1.4084,2014.8,2014.7,0.99258]
[1743035327937,0.7137,2014.9,2014.8,0.99253]
[1743035328139,2.054,2014.9,2014.8,2.33723]
[1743035330139,1.3403,2014.9,2014.8,2.33723]
[1743035330742,2.33278,2014.9,2014.8,2.33723]
[1743035330942,1.3403,2014.9,2014.8,2.33723]
[1743035332434,4.20019,2015.1,2014.8,1.3447]
[1743035332643,1.3089,2015.0,2014.9,2.36928]
[1743035334336,2.30133,2015.0,2014.9,2.36928]
[1743035334740,2.99283,2015.0,2014.9,2.36928]
[1743035334940,2.0004,2015.0,2014.9,2.36928]
[1743035335445,3.2078,2015.1,2015.0,0.99243]
[1743035335735,3.2078,2015.1,2015.0,2.38913]
[1743035335943,4.6299,2015.1,2015.0,2.38913]
[1743035336434,3.2078,2015.1,2015.0,2.38913]
[1743035336635,4.6299,2015.1,2015.0,2.38913]
[1743035337342,5.62228,2015.1,2015.0,2.38913]
[1743035337528,4.6299,2015.1,2015.0,2.38913]
[1743035338839,3.2078,2015.1,2015.0,2.38913]
[1743035339031,4.6234,2015.1,2015.0,2.38913]
[1743035339936,0.99224,2015.4,2015.3,0.99223]
[1743035340136,2.40784,2015.4,2015.3,0.99223]
[1743035340540,2.40784,2015.4,2015.3,2.33023]
[1743035341243,0.99223,2015.5,2015.4,0.99218]
[1743035341439,0.99223,2015.5,2015.4,2.38518]